bitfinex/quotes_BTCUSD_20241018
["timestamp","ask_amount","ask_price","bid_price","bid_amount"]
[1729257047221,0.49332304,67857.0,67856.0,0.002]
[1729257047863,0.49132304,67857.0,67856.0,0.002]
[1729257050231,0.23856389,67857.0,67856.0,0.002]
[1729257051084,0.24021789,67857.0,67856.0,0.002]
[1729257064833,0.16401789,67857.0,67856.0,0.002]
[1729257068981,0.16401789,67857.0,67856.0,0.0963]
[1729257069208,0.16401789,67857.0,67856.0,0.22071502]
[1729257069651,0.16401789,67857.0,67856.0,0.10567679]
[1729257070336,0.28096532,67857.0,67856.0,0.01137679]
[1729257070557,0.24161789,67857.0,67856.0,0.002]
[1729257074981,0.005,67843.0,67840.0,0.04399545]
[1729257075243,0.1775,67844.0,67829.0,0.22124057]
[1729257075244,0.147427,67830.0,67829.0,0.22124057]
[1729257075477,0.37750346,67830.0,67829.0,0.22124057]
[1729257075719,0.37750346,67830.0,67826.0,0.000827]
[1729257075720,0.152433,67827.0,67826.0,0.000827]
[1729257075971,0.262433,67827.0,67826.0,0.000827]
[1729257076193,0.15302257,67827.0,67826.0,0.000827]
[1729257077021,0.16302257,67827.0,67826.0,0.002827]
[1729257077445,0.15702257,67827.0,67826.0,0.001827]
[1729257077696,0.15902257,67827.0,67826.0,0.001827]
[1729257079031,0.16502257,67827.0,67826.0,0.001827]
[1729257079459,0.16702257,67827.0,67826.0,0.001827]
[1729257079902,0.17902257,67827.0,67826.0,0.002827]
[1729257080115,0.19302257,67827.0,67826.0,0.003827]
[1729257081719,0.19302257,67827.0,67826.0,0.17100763]
[1729257081942,0.19302257,67827.0,67826.0,0.46740278]
[1729257081943,0.04558957,67827.0,67826.0,0.46740278]
[1729257082166,0.04558957,67827.0,67826.0,0.32930875]
[1729257082416,0.04,67827.0,67826.0,0.46740278]
[1729257082630,0.03332831,67827.0,67826.0,0.31896678]
[1729257082876,0.01232831,67827.0,67826.0,0.46540278]
[1729257083327,0.00632831,67827.0,67826.0,0.46440278]
[1729257083547,0.00632831,67827.0,67826.0,0.31696678]
[1729257083811,0.00832831,67827.0,67826.0,0.46440278]
[1729257084039,0.15576131,67827.0,67826.0,0.31696678]
[1729257084704,0.00832831,67827.0,67826.0,0.31696678]
[1729257087110,0.15576131,67827.0,67826.0,0.000827]
[1729257088651,0.41961393,67827.0,67826.0,0.000827]
[1729257088868,0.15576131,67827.0,67826.0,0.000827]
[1729257090937,0.37700188,67827.0,67826.0,0.000827]
[1729257091157,0.15576131,67827.0,67826.0,0.000827]
[1729257091596,0.37700188,67827.0,67826.0,0.000827]
[1729257091801,0.15576131,67827.0,67826.0,0.000827]
[1729257097443,0.15476131,67827.0,67826.0,0.000827]
[1729257097887,0.16676131,67827.0,67826.0,0.001827]
[1729257098132,0.16676131,67827.0,67826.0,0.000827]
[1729257098316,0.16476131,67827.0,67826.0,0.000827]
[1729257098785,0.17276131,67827.0,67826.0,0.001827]
[1729257099220,0.16476131,67827.0,67826.0,0.000827]
[1729257099630,0.17676131,67827.0,67826.0,0.001827]
[1729257099838,0.19076131,67827.0,67826.0,0.002827]
[1729257100948,0.51226787,67827.0,67826.0,0.002827]
[1729257101178,0.42732046,67827.0,67826.0,0.002827]
[1729257103627,0.19076131,67827.0,67826.0,0.002827]
[1729257105671,0.19076131,67827.0,67826.0,0.001827]
[1729257105672,0.17876131,67827.0,67826.0,0.001827]
[1729257106128,0.16476131,67827.0,67826.0,0.001827]
[1729257106362,0.17676131,67827.0,67826.0,0.002827]
[1729257115606,0.34394194,67827.0,67826.0,0.002827]
[1729257115832,0.17676131,67827.0,67826.0,0.002827]
[1729257120484,0.25936131,67827.0,67826.0,0.002827]
[1729257121336,0.3614873,67827.0,67826.0,0.002827]
[1729257121547,0.25936131,67827.0,67826.0,0.002827]
[1729257121772,0.26436131,67827.0,67826.0,0.002827]
[1729257122455,0.63456103,67827.0,67826.0,0.002827]
[1729257122673,0.41332046,67827.0,67826.0,0.002827]
[1729257125700,0.40832046,67827.0,67826.0,0.002827]
[1729257125925,0.17676131,67827.0,67826.0,0.002827]
[1729257126745,0.17676131,67827.0,67826.0,0.01221026]
[1729257126746,0.02932831,67827.0,67826.0,0.01221026]
[1729257127172,0.17676131,67827.0,67826.0,0.05615228]
[1729257127614,0.15276131,67827.0,67826.0,0.05415228]
[1729257127831,0.15276131,67827.0,67826.0,0.01021026]
[1729257128052,0.15576131,67827.0,67826.0,0.07630007]
[1729257128328,0.15576131,67827.0,67826.0,0.07630525]
[1729257128515,0.15576131,67827.0,67826.0,0.01021026]
[1729257129141,0.15576131,67827.0,67826.0,0.07630525]
[1729257130701,0.00832831,67827.0,67826.0,0.07630525]
[1729257130941,0.003,67827.0,67826.0,0.01021026]
[1729257131200,0.003,67827.0,67826.0,0.51175509]
[1729257131410,0.00823666,67827.0,67826.0,0.48330541]
[1729257131635,0.003,67827.0,67826.0,0.48330541]
[1729257134618,0.003,67827.0,67826.0,0.50830541]
[1729257134820,0.003,67827.0,67826.0,0.64048503]
[1729257135018,0.003,67827.0,67826.0,0.50630541]
[1729257135225,0.003,67827.0,67826.0,0.63840956]
[1729257135656,0.294828,67836.0,67826.0,0.63840956]
[1729257135657,0.22124057,67833.0,67826.0,0.49095442]
[1729257135870,0.22124057,67833.0,67832.0,0.110062]
[1729257136116,0.22124057,67833.0,67832.0,0.11942577]
[1729257136296,0.147416,67835.0,67832.0,0.00936377]
[1729257136514,0.147416,67835.0,67833.0,0.0973947]
[1729257136723,0.147416,67835.0,67834.0,0.00936377]
[1729257137353,0.147416,67835.0,67834.0,0.07537407]
[1729257137559,0.147416,67835.0,67834.0,0.0660103]
[1729257137770,0.147416,67835.0,67834.0,0.17407407]
[1729257137984,0.147416,67835.0,67834.0,0.1647103]
[1729257138465,0.147416,67835.0,67834.0,0.0987]
[1729257138703,0.148416,67835.0,67834.0,0.0987]
[1729257138936,0.148416,67835.0,67834.0,0.1080584]
[1729257139179,0.148416,67835.0,67833.0,0.0660103]
[1729257139180,0.147418,67834.0,67833.0,0.0660103]
[1729257139389,0.147418,67834.0,67831.0,0.09738933]
[1729257139390,0.001,67835.0,67831.0,0.04400416]
[1729257139605,0.147423,67832.0,67831.0,0.04400416]
[1729257140247,0.147425,67831.0,67830.0,0.04400416]
[1729257141353,0.147419,67834.0,67830.0,0.19142916]
[1729257141568,0.29483,67836.0,67830.0,0.21118479]
[1729257141795,0.147414,67836.0,67832.0,0.147421]
[1729257141991,0.147414,67836.0,67831.0,0.04400416]
[1729257141992,0.294822,67838.0,67831.0,0.04400416]
[1729257142210,0.294822,67838.0,67831.0,0.04700416]
[1729257142432,0.147417,67835.0,67832.0,0.147422]
[1729257142853,0.00524649,67834.0,67832.0,0.147422]
[1729257143073,0.00524649,67834.0,67831.0,0.04400416]
[1729257143074,0.147413,67837.0,67833.0,0.35860479]
[1729257143284,0.00525084,67836.0,67833.0,0.21118479]
[1729257143541,0.147409,67839.0,67835.0,0.147416]
[1729257143983,0.51604657,67841.0,67834.0,0.147418]
[1729257143984,0.147412,67837.0,67834.0,0.147418]
[1729257144208,0.00525091,67836.0,67833.0,0.19142416]
[1729257144426,0.00525091,67836.0,67833.0,0.04400416]
[1729257144857,0.147412,67837.0,67833.0,0.19142316]
[1729257145058,0.00525091,67836.0,67833.0,0.19142316]
[1729257145899,0.00625091,67836.0,67833.0,0.19142316]
[1729257146119,0.15366491,67836.0,67833.0,0.19142316]
[1729257147612,0.15366491,67836.0,67833.0,0.147419]
[1729257147834,0.15366491,67836.0,67833.0,0.19142316]
[1729257148946,0.15366491,67836.0,67833.0,0.19140026]
[1729257150830,0.147418,67834.0,67833.0,0.04398126]
[1729257151037,0.15266457,67834.0,67833.0,0.04398126]
[1729257151248,0.00524657,67834.0,67832.0,0.04398126]
[1729257151476,0.147416,67835.0,67832.0,0.19140326]
[1729257151702,0.14742,67833.0,67832.0,0.04398126]
[1729257151903,0.15266439,67833.0,67831.0,0.04398126]
[1729257152110,0.00524439,67833.0,67831.0,0.34036441]
[1729257152317,0.15266439,67833.0,67831.0,0.20229776]
[1729257152523,0.00524439,67833.0,67831.0,0.05333861]
[1729257153139,0.147423,67832.0,67831.0,0.05333861]
[1729257153346,0.147423,67832.0,67831.0,0.01136321]
[1729257153552,0.15266519,67832.0,67831.0,0.01136321]
[1729257154026,0.15266519,67832.0,67831.0,0.00936321]
[1729257155395,0.15266519,67832.0,67831.0,0.003]
[1729257155837,0.15266519,67832.0,67831.0,0.003828]
[1729257156047,0.00524219,67832.0,67831.0,0.151253]
[1729257156272,0.147419,67834.0,67831.0,0.003828]
[1729257156500,0.1526653,67833.0,67832.0,0.00937824]
[1729257157568,0.0052443,67833.0,67831.0,0.149252]
[1729257158016,0.00524213,67832.0,67831.0,0.149252]
[1729257158233,0.147419,67834.0,67831.0,0.148252]
[1729257158442,0.00524431,67833.0,67831.0,0.148252]
[1729257158679,0.00524431,67833.0,67832.0,0.00938544]
[1729257159114,0.00524431,67833.0,67832.0,0.01038544]
[1729257159525,0.00524431,67833.0,67832.0,0.001]
[1729257159976,0.15266431,67833.0,67832.0,0.001]
[1729257160173,0.00524431,67833.0,67832.0,0.001]
[1729257160846,0.147419,67834.0,67832.0,0.001]
[1729257161066,0.00524433,67833.0,67832.0,0.001]
[1729257161534,0.00524433,67833.0,67832.0,0.01039203]
[1729257162626,0.00524433,67833.0,67832.0,0.001]
[1729257163262,0.147414,67836.0,67832.0,0.148423]
[1729257163461,0.00524869,67835.0,67832.0,0.148423]
[1729257163684,0.00524869,67835.0,67832.0,0.192425]
[1729257163893,0.00524869,67835.0,67832.0,0.3074991]
[1729257164115,0.15266569,67835.0,67832.0,0.1600791]
[1729257164321,0.244834,67835.0,67832.0,0.1160741]
[1729257164524,0.147418,67834.0,67832.0,0.1160741]
[1729257164730,0.00524434,67833.0,67832.0,0.1160741]
[1729257165155,0.00524434,67833.0,67832.0,0.1600791]
[1729257165988,0.00524434,67833.0,67832.0,0.1590791]
[1729257166425,0.00524434,67833.0,67832.0,0.1600791]
[1729257166668,0.00524434,67833.0,67832.0,0.1590791]
[1729257167085,0.00524434,67833.0,67832.0,0.1600791]
[1729257167309,0.147418,67835.0,67832.0,0.1600791]
[1729257167545,0.15266554,67834.0,67832.0,0.045005]
[1729257168435,0.15266554,67834.0,67833.0,0.044005]
[1729257169327,0.15266554,67834.0,67832.0,0.0670075]
[1729257169743,0.15266554,67834.0,67832.0,0.0660075]
[1729257170375,0.15266554,67834.0,67833.0,0.0660075]
[1729257170793,0.00524654,67834.0,67833.0,0.0660075]
[1729257171028,0.00624654,67834.0,67833.0,0.23543]
[1729257171477,0.00624654,67834.0,67833.0,0.14742]
[1729257171708,0.00624654,67834.0,67833.0,0.25764064]
[1729257172141,0.001,67834.0,67833.0,0.14742]
[1729257172570,0.00624658,67834.0,67832.0,0.1915741]
[1729257172815,0.001,67834.0,67832.0,0.1915741]
[1729257173050,0.0052444,67833.0,67832.0,0.3389961]
[1729257173676,0.0052444,67833.0,67832.0,0.1150741]
[1729257173906,0.0052444,67833.0,67832.0,0.2624971]
[1729257174808,0.147414,67836.0,67832.0,0.2624971]
[1729257175008,0.00524443,67833.0,67832.0,0.2634971]
[1729257175208,0.294821,67838.0,67832.0,0.2634971]
[1729257175209,0.294821,67838.0,67832.0,0.1160741]
[1729257175413,0.294821,67838.0,67832.0,0.2634971]
[1729257175638,0.15266512,67837.0,67836.0,0.11028648]
[1729257176465,0.147415,67836.0,67832.0,0.39651211]
[1729257176678,0.00524877,67835.0,67832.0,0.24908911]
[1729257176884,0.150412,67837.0,67834.0,0.147418]
[1729257177104,0.00525095,67836.0,67834.0,0.147418]
[1729257177322,0.00525095,67836.0,67832.0,0.54393411]
[1729257177532,0.15266695,67836.0,67833.0,0.14742]
[1729257177964,0.147416,67835.0,67832.0,0.39651111]
[1729257178192,0.147416,67835.0,67832.0,0.39451111]
[1729257178407,0.00524657,67834.0,67832.0,0.39451111]
[1729257179082,0.00524657,67834.0,67833.0,0.14742]
[1729257179291,0.147413,67837.0,67833.0,0.14742]
[1729257179504,0.00500928,67836.0,67833.0,0.14742]
[1729257179908,0.001656,67835.0,67832.0,0.54376211]
[1729257180118,0.001656,67835.0,67834.0,0.147418]
[1729257180319,0.001656,67835.0,67832.0,0.54276211]
[1729257180537,0.001656,67835.0,67833.0,0.147419]
[1729257180974,0.001656,67835.0,67832.0,0.54276211]
[1729257181206,0.001656,67835.0,67834.0,0.147418]
[1729257182083,0.002656,67835.0,67834.0,0.147418]
[1729257182523,0.001656,67835.0,67834.0,0.147418]
[1729257182741,0.001656,67835.0,67834.0,0.27973477]
[1729257183192,0.002656,67835.0,67834.0,0.27973477]
[1729257183419,0.002656,67835.0,67834.0,0.147418]
[1729257184060,0.004656,67835.0,67834.0,0.147418]
[1729257184276,0.004656,67835.0,67834.0,0.2797385]
[1729257184512,0.004656,67835.0,67834.0,0.147418]
[1729257185830,0.004656,67835.0,67834.0,0.246218]
[1729257186263,0.004656,67835.0,67834.0,0.37853702]
[1729257186714,0.004656,67835.0,67834.0,0.246218]
[1729257186920,0.004656,67835.0,67834.0,0.37853702]
[1729257187136,0.0094325,67835.0,67834.0,0.37853702]
[1729257188163,0.0094325,67835.0,67834.0,0.37853069]
[1729257191182,0.0094325,67835.0,67834.0,0.37851881]
[1729257191379,0.0094325,67835.0,67834.0,0.23110081]
[1729257191586,0.1568485,67835.0,67834.0,0.0988]
[1729257191836,0.0094325,67835.0,67834.0,0.0988]
[1729257192657,0.0094325,67835.0,67834.0,0.099627]
[1729257193137,0.0094325,67835.0,67834.0,0.000827]
[1729257194313,0.1568485,67835.0,67834.0,0.000827]
[1729257194473,0.0094325,67835.0,67834.0,0.000827]
[1729257201583,0.0094325,67835.0,67834.0,0.148245]
[1729257201822,0.0094325,67835.0,67834.0,0.000827]
[1729257204691,0.0094325,67835.0,67834.0,0.148245]
[1729257206189,0.0094325,67835.0,67834.0,0.3998523]
[1729257206413,0.0094325,67835.0,67834.0,0.47610415]
[1729257206632,0.004656,67835.0,67834.0,0.47610415]
[1729257206895,0.004656,67835.0,67834.0,0.4854774]
[1729257207357,0.002656,67835.0,67834.0,0.48547717]
[1729257207586,0.002656,67835.0,67834.0,0.75469724]
[1729257207810,0.002656,67835.0,67834.0,0.56538922]
[1729257208028,0.002656,67835.0,67834.0,0.5560162]
[1729257208468,0.002656,67835.0,67834.0,0.5500162]
[1729257208700,0.004656,67835.0,67834.0,0.5640162]
[1729257208916,0.002656,67835.0,67834.0,0.5570162]
[1729257209398,0.003656,67835.0,67834.0,0.5670162]
[1729257210023,0.003656,67835.0,67834.0,0.5600162]
[1729257210024,0.002656,67835.0,67834.0,0.5600162]
[1729257210227,0.003656,67835.0,67834.0,0.5680162]
[1729257211535,0.003656,67835.0,67834.0,0.71718567]
[1729257213115,0.003656,67835.0,67834.0,0.72718567]
[1729257213344,0.003656,67835.0,67834.0,0.87505531]
[1729257213557,0.003656,67835.0,67834.0,0.67997379]
[1729257214230,0.003656,67835.0,67834.0,0.68218546]
[1729257214454,0.003656,67835.0,67834.0,0.87720584]
[1729257214682,0.003656,67835.0,67834.0,0.79725956]
[1729257214881,0.003656,67835.0,67834.0,0.68218546]
[1729257215101,0.003656,67835.0,67834.0,0.68018546]
[1729257215311,0.003656,67835.0,67834.0,0.79525956]
[1729257217452,0.003656,67835.0,67834.0,0.99021874]
[1729257220414,0.003656,67835.0,67834.0,0.9443491]
[1729257221954,0.003656,67835.0,67834.0,0.99217531]
[1729257222183,0.003656,67835.0,67834.0,0.79721613]
[1729257223083,0.003656,67835.0,67834.0,0.80656962]
[1729257224433,0.003656,67835.0,67834.0,1.00141414]
[1729257224641,0.003656,67835.0,67834.0,0.80656962]
[1729257225522,0.003656,67835.0,67834.0,1.00141037]
[1729257226618,0.003656,67835.0,67834.0,0.88633627]
[1729257226852,0.003656,67835.0,67834.0,1.00141037]
[1729257227069,0.003656,67835.0,67834.0,0.99205688]
[1729257227958,0.003656,67835.0,67834.0,1.00141176]
[1729257228611,0.003656,67835.0,67834.0,0.80657101]
[1729257229091,0.003656,67835.0,67834.0,0.79721613]
[1729257232920,0.003656,67835.0,67834.0,0.79521613]
[1729257233388,0.003656,67835.0,67834.0,0.79721613]
[1729257235131,0.003656,67835.0,67834.0,0.79521613]
[1729257235593,0.003656,67835.0,67834.0,0.79721613]
[1729257236937,0.003656,67835.0,67834.0,0.71601613]
[1729257237796,0.003656,67835.0,67834.0,0.71801613]
[1729257243410,0.003656,67835.0,67834.0,0.71601613]
[1729257243627,0.003656,67835.0,67834.0,0.71801613]
[1729257244573,0.003656,67835.0,67834.0,0.71601613]
[1729257247443,0.003656,67835.0,67834.0,0.71801613]
[1729257251243,0.003656,67835.0,67834.0,0.83309023]
[1729257251469,0.003656,67835.0,67834.0,0.91579023]
[1729257252369,0.002656,67835.0,67834.0,0.79271613]
[1729257252794,0.002656,67835.0,67834.0,0.79671613]
[1729257253012,0.002656,67835.0,67834.0,0.81071613]
[1729257259037,0.002656,67835.0,67834.0,0.92579023]
[1729257261011,0.002656,67835.0,67834.0,0.81071613]
[1729257266531,0.002656,67835.0,67834.0,0.72801613]
[1729257270132,0.002656,67835.0,67834.0,0.61294203]
[1729257270347,0.002656,67835.0,67834.0,0.72801613]
[1729257271932,0.002656,67835.0,67834.0,0.51124203]
[1729257272160,0.002656,67835.0,67834.0,0.62631613]
[1729257273480,0.085556,67835.0,67834.0,0.62631613]
[1729257273938,0.085556,67835.0,67834.0,0.65581613]
[1729257274160,0.085556,67835.0,67834.0,0.62631613]
[1729257274400,0.085556,67835.0,67834.0,0.62831613]
[1729257274401,0.002656,67835.0,67834.0,0.62831613]
[1729257274938,0.002656,67835.0,67834.0,0.74339023]
[1729257275164,0.002656,67835.0,67834.0,0.62631613]
[1729257275608,0.002656,67835.0,67834.0,0.62831613]
[1729257277818,0.002656,67835.0,67834.0,0.74339023]
[1729257278053,0.001656,67843.0,67842.0,0.038]
[1729257278312,0.001656,67843.0,67842.0,0.61033456]
[1729257278531,0.00622789,67843.0,67842.0,0.61033456]
[1729257278767,0.001656,67843.0,67842.0,0.61033456]
[1729257279220,0.001656,67843.0,67842.0,0.62333456]
[1729257280320,0.001656,67843.0,67842.0,0.63533456]
[1729257285678,0.001656,67843.0,67842.0,0.6406348]
[1729257287393,0.001656,67843.0,67842.0,0.6426348]
[1729257287813,0.001656,67843.0,67842.0,0.6406348]
[1729257288276,0.001656,67843.0,67842.0,0.6356348]
[1729257288719,0.001656,67843.0,67842.0,0.6326348]
[1729257290121,0.001656,67843.0,67842.0,0.6306348]
[1729257291204,0.001656,67843.0,67842.0,0.6326348]
[1729257291645,0.001656,67843.0,67842.0,0.6306348]
[1729257294415,0.001656,67843.0,67842.0,0.62333456]
[1729257297596,0.001656,67843.0,67842.0,0.62533456]
[1729257304362,0.001656,67843.0,67842.0,0.94250866]
[1729257304585,0.080255,67855.0,67854.0,0.3775232]
[1729257304803,0.080255,67855.0,67854.0,0.52648235]
[1729257305024,0.08485619,67855.0,67854.0,0.52648235]
[1729257305303,0.080255,67855.0,67854.0,0.52648235]
[1729257305539,0.001155,67855.0,67854.0,0.55448235]
[1729257305776,0.001155,67855.0,67854.0,0.66448235]
[1729257306008,0.001155,67855.0,67854.0,0.85955264]
[1729257306241,0.002155,67855.0,67854.0,0.71033598]
[1729257306918,0.001155,67855.0,67854.0,0.71033598]
[1729257307113,0.001155,67855.0,67854.0,0.72233598]
[1729257307839,0.001155,67855.0,67854.0,0.73533598]
[1729257308766,0.001155,67855.0,67854.0,0.93019053]
[1729257309640,0.001155,67855.0,67854.0,0.8843369]
[1729257310065,0.002809,67855.0,67854.0,0.8843369]
[1729257310513,0.002809,67855.0,67854.0,0.68948235]
[1729257314579,0.002809,67855.0,67854.0,0.73528718]
[1729257314763,0.002809,67855.0,67854.0,0.68948235]
[1729257314999,0.002809,67855.0,67854.0,0.73528472]
[1729257315639,0.002809,67855.0,67854.0,0.68948235]
[1729257319820,0.002809,67855.0,67854.0,0.45933415]
[1729257320039,0.002809,67855.0,67854.0,0.56940825]
[1729257320306,0.080709,67855.0,67854.0,0.172375]
[1729257320498,0.08511501,67855.0,67854.0,0.2874491]
[1729257320972,0.08511501,67855.0,67854.0,0.39737166]
[1729257321209,0.080709,67855.0,67854.0,0.2874491]
[1729257321444,0.080709,67855.0,67854.0,0.42340825]
[1729257321911,0.080709,67855.0,67854.0,0.41540825]
[1729257322129,0.080709,67855.0,67854.0,0.41140825]
[1729257322361,0.080709,67855.0,67854.0,0.41440825]
[1729257322591,0.080709,67855.0,67854.0,0.69335329]
[1729257322823,0.080709,67855.0,67854.0,0.57527919]
[1729257323065,0.080709,67855.0,67854.0,0.41840825]
[1729257323307,0.178609,67855.0,67854.0,0.41840825]
[1729257328209,0.080709,67855.0,67854.0,0.41840825]
[1729257330926,0.08511489,67855.0,67854.0,0.41840825]
[1729257331147,0.080709,67855.0,67854.0,0.41840825]
[1729257334666,0.002809,67855.0,67854.0,0.41840825]
[1729257334925,0.002809,67855.0,67854.0,0.53348235]
[1729257335144,0.002809,67855.0,67854.0,0.41840825]
[1729257335843,0.002809,67855.0,67854.0,0.62608235]
[1729257336272,0.002809,67855.0,67854.0,0.75797329]
[1729257336965,0.002809,67855.0,67854.0,0.6260349]
[1729257338032,0.002809,67855.0,67854.0,0.757867]
[1729257338700,0.002809,67855.0,67854.0,0.75786552]
[1729257341521,0.002809,67855.0,67854.0,0.6260349]
[1729257342826,0.002809,67855.0,67854.0,0.4183608]
[1729257343060,0.084609,67855.0,67854.0,0.55018842]
[1729257344405,0.002809,67855.0,67854.0,0.55018842]
[1729257345575,0.002809,67855.0,67854.0,0.4183608]
[1729257353532,0.002809,67855.0,67854.0,0.5334349]
[1729257354911,0.002809,67855.0,67854.0,0.7254349]
[1729257355143,0.002809,67855.0,67854.0,0.77627781]
[1729257355356,0.002809,67855.0,67854.0,1.08109469]
[1729257355573,0.002809,67855.0,67854.0,0.88627781]
[1729257355794,0.002809,67855.0,67854.0,0.88827781]
[1729257359142,0.002809,67855.0,67854.0,0.89578891]
[1729257361980,0.002809,67855.0,67854.0,0.89378891]
[1729257362189,0.002809,67855.0,67854.0,0.89578891]
[1729257363945,0.0496632,67868.0,67867.0,0.147347]
[1729257364184,0.0496632,67868.0,67867.0,0.3560211]
[1729257364408,0.001692,67872.0,67871.0,0.147338]
[1729257364623,0.001692,67872.0,67871.0,0.3774862]
[1729257364837,0.00613478,67872.0,67871.0,0.3774862]
[1729257365055,0.001692,67872.0,67871.0,0.52644535]
[1729257365267,0.00613478,67872.0,67871.0,0.52644535]
[1729257365515,0.001692,67872.0,67871.0,0.52644535]
[1729257365735,0.001692,67872.0,67871.0,0.54944535]
[1729257368000,0.001692,67872.0,67871.0,0.55244535]
[1729257368438,0.001692,67872.0,67871.0,0.55444535]
[1729257368899,0.001692,67872.0,67871.0,0.43937125]
[1729257369123,0.001692,67872.0,67871.0,0.43737125]
[1729257369358,0.001692,67872.0,67871.0,0.44437125]
[1729257369575,0.001692,67872.0,67871.0,0.45037125]
[1729257371144,0.001692,67872.0,67871.0,0.56544535]
[1729257374133,0.001692,67872.0,67871.0,0.65804535]
[1729257375080,0.001692,67872.0,67871.0,0.66304535]
[1729257375766,0.001692,67872.0,67871.0,0.66504535]
[1729257375991,0.001692,67872.0,67871.0,0.66304535]
[1729257376427,0.30304057,67883.0,67882.0,0.3774622]
[1729257376428,0.22124057,67883.0,67882.0,0.3774622]
[1729257376698,0.22124057,67883.0,67882.0,0.61406807]
[1729257376942,0.22124057,67883.0,67882.0,0.52642135]
[1729257376943,0.22570825,67883.0,67882.0,0.52642135]
[1729257377163,0.0766,67888.0,67887.0,0.147303]
[1729257377389,0.0766,67888.0,67887.0,0.32807719]
[1729257377608,0.08107872,67888.0,67887.0,0.2623771]
[1729257377821,0.08107872,67888.0,67886.0,0.47538419]
[1729257377822,0.147303,67887.0,67886.0,0.06570009]
[1729257378026,0.08107872,67888.0,67887.0,0.1150741]
[1729257378303,0.223901,67888.0,67887.0,0.15887845]
[1729257378510,0.0766,67888.0,67887.0,0.1150741]
[1729257378753,0.0776,67888.0,67887.0,0.1170741]
[1729257378983,0.0766,67888.0,67887.0,0.2633771]
[1729257379217,0.0766,67888.0,67887.0,0.2623771]
[1729257379460,0.0776,67888.0,67887.0,0.2623771]
[1729257379904,0.078427,67888.0,67887.0,0.2623771]
[1729257380321,0.078427,67888.0,67887.0,0.1150741]
[1729257380585,0.225728,67888.0,67887.0,0.1150741]
[1729257381055,0.078427,67888.0,67887.0,0.1150741]
[1729257381274,0.078427,67888.0,67884.0,0.1150741]
[1729257381486,0.078427,67888.0,67887.0,0.1150741]
[1729257381487,0.520333,67888.0,67887.0,0.1150741]
[1729257382145,0.224728,67888.0,67887.0,0.1150741]
[1729257383044,0.22920685,67888.0,67887.0,0.1150741]
[1729257383281,0.08190585,67888.0,67887.0,0.1150741]
[1729257384428,0.08290585,67888.0,67887.0,0.1150741]
[1729257385143,0.23020685,67888.0,67887.0,0.1150741]
[1729257386038,0.08290585,67888.0,67887.0,0.1150741]
[1729257386680,0.08290585,67888.0,67887.0,0.2623771]
[1729257387108,0.08290585,67888.0,67887.0,0.1150741]
[1729257391339,0.08290585,67888.0,67887.0,0.2623771]
[1729257391563,0.08290585,67888.0,67887.0,0.147303]
[1729257391785,0.078427,67888.0,67887.0,0.147303]
[1729257392676,0.077427,67888.0,67887.0,0.147303]
[1729257392894,0.08186788,67888.0,67887.0,0.147303]
[1729257393116,0.08286788,67888.0,67887.0,0.147303]
[1729257393384,0.00626788,67888.0,67887.0,0.147303]
[1729257393822,0.001827,67888.0,67887.0,0.147303]
[1729257394219,0.00626788,67888.0,67887.0,0.147303]
[1729257394440,0.001827,67888.0,67887.0,0.147303]
[1729257394650,0.00626788,67888.0,67887.0,0.147303]
[1729257394866,0.001827,67888.0,67887.0,0.147303]
[1729257395109,0.00626788,67888.0,67887.0,0.147303]
[1729257395332,0.001827,67888.0,67887.0,0.147303]
[1729257395552,0.00626788,67888.0,67887.0,0.147303]
[1729257395779,0.00626789,67888.0,67887.0,0.147303]
[1729257399525,0.00626789,67888.0,67887.0,0.1910841]
[1729257401533,0.00626789,67888.0,67887.0,0.147303]
[1729257403545,0.00626789,67888.0,67887.0,0.21297465]
[1729257404664,0.00626789,67888.0,67887.0,0.31227465]
[1729257405532,0.00626789,67888.0,67887.0,0.246603]
[1729257405966,0.00626791,67888.0,67887.0,0.246603]
[1729257406154,0.001827,67888.0,67887.0,0.246603]
[1729257406373,0.00626791,67888.0,67887.0,0.246603]
[1729257407040,0.00626791,67888.0,67887.0,0.16505683]
[1729257407271,0.00626791,67888.0,67887.0,0.16506815]
[1729257407737,0.00626791,67888.0,67887.0,0.0993]
[1729257407995,0.00626791,67888.0,67887.0,0.18698669]
[1729257408399,0.00626791,67888.0,67887.0,0.0993]
[1729257409384,0.00626791,67888.0,67887.0,0.18706046]
[1729257411420,0.00626791,67888.0,67887.0,0.0993]
[1729257412308,0.00626791,67888.0,67887.0,0.08779892]
[1729257412559,0.23476891,67888.0,67887.0,0.08779892]
[1729257412807,0.147305,67886.0,67885.0,0.08779892]
[1729257413242,0.1515367,67886.0,67885.0,0.08779892]
[1729257413954,0.147307,67885.0,67884.0,0.10970057]
[1729257414207,0.147307,67885.0,67883.0,0.10977111]
[1729257414466,0.15153853,67885.0,67881.0,0.147315]
[1729257414725,0.15153853,67885.0,67884.0,0.10977439]
[1729257415908,0.15153853,67885.0,67884.0,0.22584849]
[1729257416143,0.00422953,67885.0,67884.0,0.22584849]
[1729257416356,0.00422953,67885.0,67884.0,0.1180741]
[1729257416586,0.00422952,67885.0,67884.0,0.1180741]
[1729257416805,0.00422952,67885.0,67884.0,0.22787673]
[1729257418293,0.147304,67887.0,67884.0,0.22787673]
[1729257418505,0.00422951,67885.0,67884.0,0.22787673]
[1729257418717,0.082027,67888.0,67884.0,0.22787673]
[1729257418958,0.00422951,67885.0,67884.0,0.26011063]
[1729257419194,0.00422952,67885.0,67884.0,0.2643821]
[1729257419409,0.229328,67888.0,67884.0,0.2643821]
[1729257419645,0.229328,67888.0,67887.0,0.1150741]
[1729257420312,0.229328,67888.0,67887.0,0.20295345]
[1729257421221,0.082027,67888.0,67887.0,0.20295345]
[1729257422114,0.082027,67888.0,67887.0,0.1150741]
[1729257422360,0.083027,67888.0,67887.0,0.22492329]
[1729257422835,0.083027,67888.0,67887.0,0.2623771]
[1729257423072,0.083027,67888.0,67887.0,0.1150741]
[1729257423312,0.083027,67888.0,67887.0,0.2623771]
[1729257423574,0.001827,67888.0,67887.0,0.147303]
[1729257424675,0.001827,67888.0,67886.0,0.24679944]
[1729257424911,0.001827,67888.0,67886.0,0.1150741]
[1729257425121,0.14913,67888.0,67886.0,0.1150741]
[1729257425339,0.224204,67887.0,67883.0,0.39411044]
[1729257425564,0.0769,67887.0,67883.0,0.24679944]